Cogmind - Beta 9.4 @@@ ROGUE MODE // 2020.01.13 @ 16:17:02 Player: OccultOnion Result: Destroyed by S-27 Virus with Autogun Performance ------------- Evolutions (3) 1500 Regions Visited (4) 800 Robots Destroyed (36) 180 Value Destroyed (1011) 1011 Prototype IDs (0) 0 Alien Tech Used (0) 0 Bonus (0) 0 TOTAL SCORE: 3491 Bonus ------- None Cogmind --------- Core Integrity 0/700 Matter 281/300 Energy 99/100 System Corruption 9% Temperature Cool (0) Movement Rolling (80) Location -7/Factory Parts ------- > --- POWER (1) -------- (None) > --- PROPULSION (4) --- Wheel > --- UTILITY (5) ------ Visual Processing Unit > --- WEAPON (3) ------- (None) > --- INVENTORY (4) ---- Light Ion Engine Target Analyzer Target Analyzer Improved Propulsion Shielding Peak State ------------ > --- POWER ------------ Light Nuclear Core > --- PROPULSION ------- Light Treads Improved Aluminum Leg Wheel Xenon Bombardment Thruster > --- UTILITY ---------- Large Storage Unit Visual Processing Unit Improved Sensor Array Terrain Scan Processor Field Recycling Unit > --- WEAPON ----------- Beam Rifle Light Cannon Katana > --- INVENTORY -------- Deuterium Engine Target Analyzer Target Analyzer Kinecellerator Core Shielding Improved Propulsion Shielding Improved Grenade Launcher Heavy Hammer [Rating: 28] Favorites ----------- Power Light Ion Engine Engine Light Ion Engine Power Core Light Nuclear Core Propulsion Aluminum Leg Treads Light Treads Leg Aluminum Leg Wheel Wheel Hover Unit Airjet Flight Unit Xenon Bombardment Thruster Utility Large Storage Unit Device Field Recycling Unit Storage Large Storage Unit Processor Terrain Scan Processor Protection Medium Armor Plating Weapon Light Assault Rifle Energy Gun Beam Rifle Energy Cannon Beam Cannon Ballistic Gun Light Assault Rifle Ballistic Cannon Light Cannon Launcher Improved Grenade Launcher Impact Weapon Heavy Hammer Slashing Weapon Katana Build | -11 -10 -9 -8 -7 ------- Run | Scr Mat Mat Mat Fac Slots Evolved 6 | . . 2 2 2 Power . | . . . . . Propulsion 2 | . . 1 1 . Utility 3 | . . 1 1 1 Weapon 1 | . . . . 1 Parts Attached 43 | 7 1 10 15 10 Power 5 | 1 . 1 2 1 Engine 4 | 1 . 1 1 1 Core 1 | . . . 1 . Reactor . | . . . . . Propulsion 15 | 2 . 5 5 3 Treads 3 | . . 2 1 . Leg 7 | 2 . 2 3 . Wheel 3 | . . 1 1 1 Hover 1 | . . . . 1 Flight 1 | . . . . 1 Utility 9 | 2 1 3 1 2 Device 3 | 1 . 1 . 1 Storage 2 | 1 1 . . . Processor 2 | . . 1 1 . Hackware . | . . . . . Protection 2 | . . 1 . 1 Artifact . | . . . . . Weapon 14 | 2 . 1 7 4 Energy Gun 6 | 1 . 1 3 1 Energy Cannon 1 | . . . 1 . Ballistic Gun 2 | 1 . . 1 . Ballistic Cannon 2 | . . . 1 1 Launcher 1 | . . . . 1 Special Weapon . | . . . . . Impact Weapon 1 | . . . . 1 Slashing Weapon 1 | . . . 1 . Piercing Weapon . | . . . . . Special Melee Weapon . | . . . . . Unidentified Prototypes . | . . . . . Parts Lost 32 | . . 3 12 17 Power 4 | . . 1 1 2 Propulsion 11 | . . 1 5 5 Utility 6 | . . 1 . 5 Weapon 11 | . . . 6 5 Highest Loss Streak 16 | . . 1 3 16 Average Slot Usage (%) 88 | . 100 88 95 74 Engine 5 | . 14 10 3 . Core 2 | . . . 5 4 Treads 9 | . . 14 13 4 Leg 14 | . 28 13 15 4 Wheel 4 | . . 4 4 6 Flight 1 | . . . . 3 Device 9 | . 14 6 9 10 Storage 9 | . 14 11 9 7 Processor 10 | . . 4 18 13 Energy Gun 9 | . 14 10 10 4 Energy Cannon 1 | . . . 3 . Ballistic Gun 5 | . 14 11 1 . Ballistic Cannon 1 | . . . 1 4 Slashing Weapon 1 | . . . . 4 Naked Turns . | . . . . . Heaviest Build 38 | 11 23 33 35 38 Greatest Support 23 | 20 20 20 23 10 Greatest Overweight (x) 9 | . 1 2 9 5 Average Overweight (x) 1 | . . 1 1 2 Largest Inventory Capacity 10 | 6 10 10 10 10 Average Capacity 9 | 5 8 10 10 10 Most Carried 10 | 6 10 10 10 10 Average Carried 8 | 3 6 9 9 8 Final Capacity 10 | 6 10 10 10 4 Final Carried 10 | 4 10 10 10 4 Class Distribution -------------------- 55% | Mutant 44% | Scavenger-Mutant Dominant Class ---------------- Mutant | -10/Materials Mutant | -9/Materials Scavenger-Mutant | -8/Materials Scavenger-Mutant | -7/Factory Resources | -11 -10 -9 -8 -7 ----------- Run | Scr Mat Mat Mat Fac Matter Collected 628 | 224 . 179 126 99 Remotely . | . . . . . Salvage Created 1190 | 66 88 445 437 154 Parts 91 | 6 3 41 29 12 Haulers Intercepted . | . . . . . Recyclers Shooed . | . . . . . Parts Field Recycled 7 | . . 2 4 1 Retrieved Matter 33 | . . 7 15 11 Parts Self-Destructed . | . . . . . Prevented . | . . . . . Kills | -11 -10 -9 -8 -7 ------- Run | Scr Mat Mat Mat Fac Combat Hostiles Destroyed 27 | . 2 14 8 3 Guns 20 | . 2 12 6 . Cannons 4 | . . . 2 2 AOE 3 | . . 2 . 1 Classes Destroyed 9 | 1 1 4 1 2 Worker 3 | . . 1 . 2 Builder 1 | . . . . 1 Tunneler 3 | 3 . . . . Watcher 2 | . . 1 1 . Swarmer 7 | . . 7 . . Grunt 10 | . 2 4 4 . Brawler 1 | . . . . 1 Duelist 2 | . . . 1 1 Sentry 7 | . . 3 3 1 Best Kill Streak 5 | 3 2 5 2 4 Combat Bots Only 5 | . 2 5 2 1 Max Kills in Single Turn 3 | 2 1 2 1 3 Gunslinging . | . . . . . Exploded 2 | . . 2 . 1 Melee . | . . . . . Uniques/NPCs Destroyed . | . . . . . Combat | -11 -10 -9 -8 -7 -------- Run | Scr Mat Mat Mat Fac Damage Taken 3549 | . 46 572 1076 1855 Core 924 | . . 56 156 712 Absorbed by Shields . | . . . . . Core Remaining (%) 89 | 100 100 86 71 . Volleys Fired 111 | 4 5 36 49 17 Largest 2 | 2 2 2 2 2 Hottest 110 | 60 60 76 110 91 Shots Fired 188 | 8 10 68 75 27 Gun 158 | 8 10 68 62 10 Cannon 28 | . . . 13 15 Launcher 2 | . . . . 2 Special . | . . . . . Kinetic 76 | 4 5 36 16 15 Thermal 41 | . . 16 15 10 Explosive 2 | . . . . 2 Electromagnetic 69 | 4 5 16 44 . Robot Hit Streak 13 | 3 2 9 13 8 Robot Miss Streak 5 | 1 1 5 3 2 Penetration Max . | . . . . . Secondary Targets 1 | . . 1 . . Max Gunslinging Chain 1 | . . 1 . . Shots Hit Robots 116 | 6 6 37 44 23 Core Hits 73 | 4 5 24 20 20 Critical Hits . | . . . . . Critical Kills . | . . . . . Critical Parts Destroyed . | . . . . . Melee Attacks 12 | . . . 7 5 Impact 5 | . . . . 5 Slashing 7 | . . . 7 . Piercing . | . . . . . Sneak Attacks . | . . . . . Combat Hostiles . | . . . . . Follow-up Attacks . | . . . . . Damage Inflicted 2028 | 67 128 484 674 675 Guns 1170 | 67 57 398 520 128 Cannons 308 | . . . 106 202 Explosions 470 | . 71 86 48 265 Melee 61 | . . . . 61 Ramming 19 | . . . . 19 Kinetic 470 | 22 17 142 87 202 Thermal 564 | . 71 202 163 128 Explosive 265 | . . . . 265 Electromagnetic 649 | 45 40 140 424 . Impact 61 | . . . . 61 Slashing . | . . . . . Piercing . | . . . . . Highest Corruption 9 | . 2 . . 9 Average Corruption 5 | . 2 . . 8 Corruption Purged . | . . . . . Effects 6 | . 1 . . 5 Message Errors 2 | . 1 . . 1 Matter Fused 3 | . . . . 3 Data Loss (major) 1 | . . . . 1 Overload Shots . | . . . . . Overflow Damage 58 | . . 9 . 49 Projectiles . | . . . . . Explosions 58 | . . 9 . 49 Melee . | . . . . . Knockbacks 1 | . . . . 1 Impact . | . . . . . Kinetic 1 | . . . . 1 Secondary . | . . . . . Self-Inflicted Damage 196 | . . 46 35 115 Shots 4 | . . 1 1 2 Rammed 8 | . . . . 8 Targets Rammed 8 | . . . . 8 Kicked . | . . . . . Crushed . | . . . . . Highest Temperature 360 | 20 46 132 360 165 Average Temperature 72 | 15 20 41 94 81 Received Heat Transfer 1056 | . 6 102 441 507 Effects 1 | . . . 1 . Short Circuit 1 | . . . 1 . Siege Activations . | . . . . . Robots Corrupted . | . . . . . Combat Hostiles . | . . . . . Parts Fried 6 | . . 1 5 . Impact Corruptions . | . . . . . Robots Melted . | . . . . . Combat Hostiles . | . . . . . Parts Melted 1 | . . 1 . . Heat Transferred 1188 | . 150 346 359 333 Parts Sabotaged . | . . . . . Parts Stolen . | . . . . . Parts Stripped . | . . . . . Power Chain Reactions 3 | . 1 1 1 . Missiles Intercepted . | . . . . . Alert | -11 -10 -9 -8 -7 ------- Run | Scr Mat Mat Mat Fac Peak Influence 419 | 15 54 419 236 75 Average Influence 105 | 3 26 241 125 26 Maximum Alert Level 2 | . . 2 1 . Low Security (%) 79 | 100 100 36 80 100 Level 1 17 | . . 48 19 . Level 2 3 | . . 14 . . Level 3 . | . . . . . Level 4 . | . . . . . Level 5 . | . . . . . High Security . | . . . . . Max Security . | . . . . . Squads Dispatched 3 | . . 1 2 . Investigation 1 | . . . 1 . Extermination . | . . . . . Reinforcement 2 | . . 1 1 . Assault . | . . . . . Garrison . | . . . . . Intercept . | . . . . . Construction Impeded . | . . . . . Haulers Reinforced . | . . . . . Stealth | -11 -10 -9 -8 -7 --------- Run | Scr Mat Mat Mat Fac Distress Signals 1 | . . . 1 . Communications Jammed . | . . . . . Distress Signals . | . . . . . Times Spotted 50 | . 2 17 17 14 Peak Tracking Total 6 | . 2 5 4 6 Tactical Retreats 4 | . . . 2 2 Traps | -11 -10 -9 -8 -7 ------- Run | Scr Mat Mat Mat Fac Traps Triggered 6 | . 2 2 1 1 Indirectly . | . . . . . Trap Hack Attempts . | . . . . . Triggered . | . . . . . Disarmed . | . . . . . Reprogrammed . | . . . . . Reused . | . . . . . Traps Extracted . | . . . . . Installed . | . . . . . Triggered . | . . . . . Machines | -11 -10 -9 -8 -7 ---------- Run | Scr Mat Mat Mat Fac Machines Disabled 1 | . . 1 . . Max in Single Turn 1 | . . 1 . . Garrison Access 1 | . . . . 1 Machines Sabotaged . | . . . . . Garrisons Compromised . | . . . . . Overloaded Fab Kills . | . . . . . Fab Network Shutdowns . | . . . . . Hacking | -11 -10 -9 -8 -7 --------- Run | Scr Mat Mat Mat Fac Machines Accessed 8 | . 1 . 2 5 Terminals 7 | . 1 . 2 4 Fabricators . | . . . . . Repair Stations . | . . . . . Recycling Units . | . . . . . Scanalyzers . | . . . . . Garrison Access 1 | . . . . 1 Total Hacks 18 | . 3 . 7 8 Successful 9 | . 1 . 4 4 Failed 9 | . 2 . 3 4 Catastrophic 2 | . . . 1 1 Database Lockouts . | . . . . . Manual 9 | . . . 7 2 Terminals 17 | . 3 . 7 7 Fabricators . | . . . . . Repair Stations . | . . . . . Recycling Units . | . . . . . Scanalyzers . | . . . . . Garrison Access 1 | . . . . 1 Terminal Hacks 8 | . 1 . 4 3 Record 2 | . . . . 2 Level Access Points 1 | . . . 1 . Alert Level 2 | . . . 2 . Unreport Threat 1 | . . . 1 . Zone Layout 2 | . 1 . . 1 Fabricator Hacks . | . . . . . Repair Station Hacks . | . . . . . Recycling Unit Hacks . | . . . . . Scanalyzer . | . . . . . Garrison Access Hacks 1 | . . . . 1 Seal Access 1 | . . . . 1 Unauthorized Hacks . | . . . . . Terminals . | . . . . . Fabricators . | . . . . . Repair Stations . | . . . . . Recycling Units . | . . . . . Scanalyzers . | . . . . . Garrison Access . | . . . . . Data Cores Recovered . | . . . . . Used . | . . . . . Hacking Detections 7 | . 1 . 2 4 Full Trace Events . | . . . . . Feedback Events . | . . . . . Feedback Blocked . | . . . . . Robot Schematics Acquired . | . . . . . Robots Built . | . . . . . Matter . | . . . . . Time . | . . . . . Total Robot Build Rating . | . . . . . Part Schematics Acquired . | . . . . . Parts Built . | . . . . . Matter . | . . . . . Time . | . . . . . Total Part Build Rating . | . . . . . Parts Repaired . | . . . . . Time . | . . . . . Parts Recycled . | . . . . . Recycled Matter . | . . . . . Retrieved Matter . | . . . . . Retrieved Components . | . . . . . Parts Scanalyzed . | . . . . . Part Schematics Acquired . | . . . . . Parts Damaged . | . . . . . Bothacking | -11 -10 -9 -8 -7 ------------ Run | Scr Mat Mat Mat Fac Used RIF Installer . | . . . . . Robots Hacked . | . . . . . Non-combat . | . . . . . Combat . | . . . . . Robot Hacks Applied . | . . . . . Relay Couplers Released . | . . . . . Robots Rewired . | . . . . . Allies Hacked . | . . . . . Hacks Repelled . | . . . . . Allies | -11 -10 -9 -8 -7 -------- Run | Scr Mat Mat Mat Fac Total Allies . | . . . . . Largest Group . | . . . . . Highest-Rated Group . | . . . . . Highest-Rated Ally . | . . . . . Total Orders . | . . . . . Ally Attacks . | . . . . . Total Damage . | . . . . . Kills . | . . . . . Allies Corrupted . | . . . . . Allies Melted . | . . . . . Intel | -11 -10 -9 -8 -7 ------- Run | Scr Mat Mat Mat Fac Robot Analysis Total . | . . . . . Derelict Logs Recovered . | . . . . . Drone Launches . | . . . . . Drone Recoveries . | . . . . . Exploration | -11 -10 -9 -8 -7 ------------- Run | Scr Mat Mat Mat Fac Turns Passed 1676 | 82 244 387 511 452 Spaces Moved 987 | 54 159 195 241 338 Core 19 | 16 . . 2 1 Treads 8 | . . . 8 . Legs 392 | 38 159 93 102 . Wheels 568 | . . 102 129 337 Hover . | . . . . . Flight . | . . . . . Fastest Speed 50 | 50 120 110 110 90 Average Speed 121 | 99 138 129 132 104 Slowest Speed 500 | 120 150 180 500 300 Overloaded Moves . | . . . . . Propulsion Burnouts . | . . . . . Robots Hopped . | . . . . . Cave-ins Triggered . | . . . . . Exploration Rate (%) 21 | 4 40 32 20 12 Regions Visited 4 Branch Regions . Pre-discovered Areas . | . . . . . Known Exits Taken 1 | . . . 1 . Unknown Exits Taken 3 | 1 1 1 . . Scrap Searched . | . . . . . Spaces Dug 7 | . . . 7 . Terrain Destroyed 26 | . 3 2 12 9 Melee 7 | . . . 7 . Projectile . | . . . . . AOE 19 | . 3 2 5 9 Actions | -11 -10 -9 -8 -7 --------- Run | Scr Mat Mat Mat Fac Total 1263 | 75 174 272 351 391 Wait 30 | . . 9 16 5 Move 983 | 53 158 194 240 338 Hop . | . . . . . Pick Up 60 | 11 8 16 18 7 Fast Attach . | . . . . . Attach 39 | 7 . 9 13 10 Detach . | . . . . . Swap 4 | . 1 1 2 . Drop 16 | . 2 7 6 1 Fire 111 | 4 5 36 49 17 Melee 12 | . . . 7 5 Ram 8 | . . . . 8 Kick . | . . . . . Crush . | . . . . . Escape Stasis . | . . . . . Rewire . | . . . . . Trap . | . . . . . Miscellaneous . | . . . . . Route ------- -11/Scrapyard -10/Materials (discovered 2 exits: [*Mat] / [*Min]) -9/Materials -8/Materials (discovered 3 exits: *Fac x3) -7/Factory History --------- Turn | Location | Event 2 | -11/Scrapyard | Met Revision 17 5 | -11/Scrapyard | Discovered new exit (range 15) 83 | -11/Scrapyard | Entered Materials 210 | -10/Materials | Discovered new exit (range 16) 278 | -10/Materials | Discovered new exit (range 11) 313 | -10/Materials | Build established: Mutant 327 | -10/Materials | Entered another Materials area 327 | -9/Materials | Evolved 2 slots: Propulsion x1, Utility x1 703 | -9/Materials | Discovered new exit (range 10) 714 | -9/Materials | Entered another Materials area 714 | -8/Materials | Evolved 2 slots: Propulsion x1, Utility x1 821 | -8/Materials | Lost 3 parts (1p1n1w) 844 | -8/Materials | Identified exit to Factory 1075 | -8/Materials | Build established: Scavenger-Mutant 1225 | -8/Materials | Entered Factory 1225 | -7/Factory | Evolved 2 slots: Utility x1, Weapon x1 1570 | -7/Factory | Core integrity fell below 50% 1585 | -7/Factory | Core integrity fell below 20% 1604 | -7/Factory | Lost 16 parts (2p5n4u5w) 1677 | -7/Factory | Destroyed by S-27 Virus with Autogun Last Messages --------------- 01597_ K-01 Serf cleans the Terminal. 01604_ Connecting with Terminal... >>Layout(Zone) Retrieving Zone 6U layout... Downloaded map data. 01606_ K-01 Serf cleans the Fusion Modulator. 01611_ K-01 Serf cleans the Terminal. 01614_ K-01 Serf cleans the Fusion Modulator. 01614_ K-01 Serf cleans the Terminal. 01619_ System corrupted: Substantial component data lost. 01621_ K-01 Serf cleans the Nuclear Reactor. 01654_ System corrupted: Matter fused (-8). 01662_ K-01 Serf cleans the Construction Platform. 01664_ Slammed into K-01 Serf. 01666_ K-01 Serf cleans the Construction Platform. 01669_ Slammed into K-01 Serf. 01671_ System corrupted: Matter fused (-7). 01673_ C-30 ARC bursts open, deploying its payload. 01673_ S-27 Virus unfolds itself. 01677_ Lrg. Storage Unit destroyed. Map ----- +----------------------------------------------------+ | ????????????# ?## # """ """ # # "" | | ????????????# ??# # """ """ # + "F"" | | ????????????# #?# + """ """ # # """" ?? | | ????????????? ??# # # #######/#??? | | ????????????? ??# # ] / #??????????? | | ????????????????????# # # #??????????? | | ????????????????????# #####+##### #???????? "" | | ????????????????????# #???# #???# ####### "" | | ????????????????????# #???# #???# | | ????????????????????# #???# ##### """ | | ????????????????????# #???# """ | | ????????????????????# #???# """ | | ????????????????????# #???# | | ????????????????????# #???# | | ????????????????????# #???# | | ????????????????????# ##### ############ | | ????????????????????# #??????????? | | ????????????????????# ########### #??????????? | | ????????????????????# ########### #??????????? | | ????????????????????# # ## #??????????? | | ????????????????????# # ## #??????????? | | ????????????????????# # ## #??????????? | | ????????????????????# # + #??????????? | | ????????????????????# + ## #??????????? | | ????????????????????# # ## ########## | | ????????????????????# !@# ## | | ????????????????????# # ## | | ????????????????????# # ## ############ | | ????????????????????# ###########+######?????? | | ????????????????????# # #?????? | | ????????????????????# + """" """" """" #?????? | | ????????????????????# # """" """" """" #?????? | | ????????????????????# # """" """" """" #?????? | | ????????????????????# # """" """" """" #?????? | | ??????????????????? s # """" """" """" #?????? | | ????????????????? # """" """" """"?#?????? | | ??????????????? # """" """" """"???????? | | ?????????????? ss # ? ?????????? | | ???????????? #########?####?????????? | | ????????????##########+###???????????????????????? | | ????????????????????? ??????????????????????????? | | ?????????????????????" ??????????????????????????? | | ?????????????????????" ??????????????????????????? | | ?????????????????????"???????????????????????????? | | ????????????????????? ???????????????????????????? | | ?????????????????????????????????????????????????? | | ?????????????????????????????????????????????????? | | ?????????????????????????????????????????????????? | | ?????????????????????????????????????????????????? | | ?????????????????????????????????????????????????? | +----------------------------------------------------+ Best States ------------- Heat Dissipation 34 Energy Generation 14 Energy Capacity 275 Matter Stores 300 Matter Capacity 300 Sight Range 18 Robot Scan Range 13 Terrain Scan Range 16 Terrain Scan Density 85 Armor Coverage 225 Core Shielding 20 Evasion (%) 50 Recoil Reduction 1 Item Schematics ----------------- None Robot Schematics ------------------ None Fabricated ------------ Nothing Alien Tech Used ----------------- None Achievements -------------- None Challenges ------------ None Game ------ Seed DisruptorMissileDriver Manual? 0 Play Time 00:19:23 Cumulative 26.7 hours Start 2020.01.13 @ 15:59:29 End 2020.01.13 @ 16:17:02 Sessions 1 Manual Loads 0 Difficulty Rogue Special Mode None Game No. 65 Rogue 65 Adventurer 0 Explorer 0 Win Type - Total 0 Types 0/0/0/0/0/0/0 Lore% 18 Gallery% 35 Achievement% 22 Wizard Run 0 Options --------- ASCII 0 Keyboard 0 Movement Numpad Keybinds 0 Fullscreen 1 Font 18/SmallcapsGlow Map View 76x50 Tactical HUD 1 Map Filters NONE Filters NONE Steam 1 RUN: 78ba6842-56c6-4544-96e2-a0981ffc06ab